Workbook

Sheet Documentation
W41: This spreadsheet is an educational example. The Society of Actuaries Research Institute does not warrant this spreadsheet as fit for business use in any respect, and no warranty whatsoever should be assumed or implied by any individual of this spreadsheet or its fitness for any particular purpose.
W43: © 2022 Society of Actuaries Research Institute

Sheet Calculations
A1: Valuation of a put option on equity stock
A2: One-year tenor | N2: Values to try:
D3: Risk-Neutral | H3: Real-World
H4: Market price of risk (MPR): | J4: 0.3 | K4: = risk spread / volatility | N4: <- zero or roughly 30%
D5: Risk-free rate: | F5: =J5 -> 0.04 | H5: Risk-free rate: | J5: 0.04 | N5: <- Reasonable range is 0% to 10%
D6: Implied volatility: | F6: =impliedVolatilityBS(1+J7,1,$F$5,1,$J$15,$J$6) -> 0.1547946774 | H6: Est. realized volatility: | J6: 0.15 | N6: <- Broad stock market index volatility is roughly 15%
D7: Strike: | F7: =J7 -> 0 | H7: Strike: | J7: 0 | K7: % difference from current | N7: <- Reasonable range is 0% +/- 10%
D8: Expected returns on underlying equity: | H8: Expected returns on underlying equity:
D9: Risk-free rate: | F9: =F5 -> 0.04 | H9: Risk spread: | J9: =J4*J6 -> 0.045 | K9: = volatility * MPR
H10: Risk-adjusted return: | J10: =J5+J4*J6 -> 0.085 | K10: = risk free + risk spread
D11: Valuation of the put option: | H11: Valuation of the put option: | N11: Real-world calculation differences from risk-neutral approach:
D12: Expected present value: | F12: =F121/EXP(F5) -> 0.0428779861 | H12: Expected present value: | J12: =J121/EXP(J5) -> 0.02670434679
H13: Std dev of present value: | J13: =SQRT(L121)/EXP(J5) -> 0.05391799605 | N13: 1. The mean expected return includes a risk spread
H14: Risk adjustment: | J14: =J4*J13 -> 0.01617539882 | K14: = std dev * MPR | N14: 2. The volatility is the expected realized volatility, not the implied volatility
D15: Price = expected value | F15: =F12 -> 0.0428779861 | H15: Price | J15: =(J12+J14) -> 0.0428797456 | K15: = expected val + risk adj | N15: 3. The option price includes a risk adjustment over the expected value
A17: Standard Normal Distribution | W17: Probability distribution of 1-year log return
A18: Std errs | B18: Probability weight | D18: Return | E18: Payoff | F18: Probability weighted payoff | H18: Return | I18: Payoff | J18: Probability weighted payoff | K18: Diff from mean | L18: Probability weighted diff^2 | X18: Risk neutral | Y18: Real world
A19: -5 | B19: =_xlfn.NORM.DIST(A19,0,1,FALSE)/10 -> 1.486719515e-07 | D19: =EXP($F$5-0.5*$F$6^2+$F$6*$A19)-1 -> -0.5257184201 | E19: =MAX(0,-D19+$F$7) -> 0.5257184201 | F19: =E19*$B19 -> 7.815958344e-08 | H19: =EXP($J$10-0.5*$J$6^2+$J$6*$A19)-1 -> -0.4914796273 | I19: =MAX(0,$J$7-H19) -> 0.4914796273 | J19: =I19*$B19 -> 7.30692353e-08 | K19: =MAX(I19,0)-J$121 -> 0.4636854555 | L19: =K19^2*$B19 -> 3.196509423e-08 | W19: -0.5 | X19: =_xlfn.NORM.DIST(W19,$J$5,$F$6,FALSE) -> 0.005868999001 | Y19: =_xlfn.NORM.DIST(W19,$J$10,$J$6,FALSE) -> 0.001324369809
A20: =A19+0.1 -> -4.9 | B20: =_xlfn.NORM.DIST(A20,0,1,FALSE)/10 -> 2.438960746e-07 | D20: =EXP($F$5-0.5*$F$6^2+$F$6*$A20)-1 -> -0.5183196771 | E20: =MAX(0,-D20+$F$7) -> 0.5183196771 | F20: =E20*$B20 -> 1.264161346e-07 | H20: =EXP($J$10-0.5*$J$6^2+$J$6*$A20)-1 -> -0.4837943261 | I20: =MAX(0,$J$7-H20) -> 0.4837943261 | J20: =I20*$B20 -> 1.17995537e-07 | K20: 0.4560001542 | L20: =K20^2*$B20 -> 5.071480846e-08 | W20: =W19+0.005 -> -0.495 | X20: 0.006565598604 | Y20: =_xlfn.NORM.DIST(W20,$J$10,$J$6,FALSE) -> 0.001507392256
A21: =A20+0.1 -> -4.8 | B21: 3.961299091e-07 | D21: -0.5108055145 | E21: 0.5108055145 | F21: 2.02345342e-07 | H21: -0.4759928763 | I21: 0.4759928763 | J21: 1.885550148e-07 | K21: 0.4481987045 | L21: 7.957539958e-08 | W21: =W20+0.005 -> -0.49 | X21: 0.00733721933 | Y21: 0.001713802367
A22: -4.7 | B22: 6.369825179e-07 | D22: -0.5031741317 | E22: 0.5031741317 | F22: 3.205131254e-07 | H22: -0.4680735228 | I22: 0.4680735228 | J22: 2.981546511e-07 | K22: 0.440279351 | L22: 1.234764539e-07 | W22: =W21+0.005 -> -0.485 | X22: 0.008190974163 | Y22: 0.001946312839
A23: -4.6 | B23: 1.014085207e-06 | D23: -0.4954237002 | E23: 0.4954237002 | F23: 5.024018454e-07 | H23: -0.4600344836 | I23: 0.4600344836 | J23: 4.665141643e-07 | K23: 0.4322403118 | L23: 1.8946325e-07 | W23: =W22+0.005 -> -0.48 | X23: 0.009134535995 | Y23: 0.002207913257
A24: -4.5 | B24: 1.598374111e-06 | D24: -0.4875523628 | E24: 0.4875523628 | F24: 7.792910743e-07 | H24: -0.4518739499 | I24: 0.4518739499 | J24: 7.222636228e-07 | K24: 0.424079778 | L24: 2.874574471e-07 | W24: =W23+0.005 -> -0.475 | X24: 0.01017616893 | Y24: 0.002501893491
A25: -4.4 | B25: 2.494247129e-06 | D25: -0.4795582333 | E25: 0.4795582333 | F25: 1.196136747e-06 | H25: -0.4435900855 | I25: 0.4435900855 | J25: 1.106423297e-06 | K25: 0.4157959136 | L25: 4.312210122e-07 | W25: =W24+0.005 -> -0.47 | X25: 0.01132475996 | Y25: 0.00283186847
A26: -4.3 | B26: 3.853519674e-06 | D26: -0.4714393962 | E26: 0.4714393962 | F26: 1.816700989e-06 | H26: -0.4351810265 | I26: 0.4351810265 | J26: 1.676978647e-06 | K26: 0.4073868546 | L26: 6.395457292e-07 | W26: =W25+0.005 -> -0.465 | X26: 0.01258985082 | Y26: 0.003201804344
A27: -4.2 | B27: 5.894306776e-06 | D27: -0.4631939062 | E27: 0.4631939062 | F27: 2.73020698e-06 | H27: -0.4266448808 | I27: 0.4266448808 | J27: 2.514775812e-06 | K27: 0.398850709 | L27: 9.376774506e-07 | W27: =W26+0.005 -> -0.46 | X27: 0.01398166987 | Y27: 0.003616046041
A28: -4.1 | B28: 8.926165718e-06 | D28: -0.4548197873 | E28: 0.4548197873 | F28: 4.059796793e-06 | H28: -0.4179797279 | I28: 0.4179797279 | J28: 3.730956318e-06 | K28: 0.390185556 | L28: 1.35896203e-06 | W28: =W27+0.005 -> -0.455 | X28: 0.01551116379 | Y28: 0.004079346201
A29: -4 | B29: 1.338302258e-05 | D29: -0.4463150331 | E29: 0.4463150331 | F29: 5.973044164e-06 | H29: -0.4091836179 | I29: 0.4091836179 | J29: 5.476113596e-06 | K29: 0.381389446 | L29: 1.946666487e-06 | W29: =W28+0.005 -> -0.45 | X29: 0.01719002884 | Y29: 0.004596895458
A30: -3.9 | B30: 1.986554714e-05 | D30: -0.4376776056 | E30: 0.4376776056 | F30: 8.694705105e-06 | H30: -0.4002545717 | I30: 0.4002545717 | J30: 7.951276062e-06 | K30: 0.3724603999 | L30: 2.755882781e-06 | N30: If the market price of risk is not zero, the distributions peak at a different value. | W30: =W29+0.005 -> -0.445 | X30: 0.0190307414 | Y30: 0.005174354041
A31: -3.8 | B31: 2.919469258e-05 | D31: -0.4289054351 | E31: 0.4289054351 | F31: 1.252176232e-05 | H31: -0.3911905803 | I31: 0.3911905803 | J31: 1.142068873e-05 | K31: 0.3633964085 | L31: 3.855362049e-06 | W31: =W30+0.005 -> -0.44 | X31: 0.0210465876 | Y31: 0.005817884634
A32: -3.7 | B32: 4.247802706e-05 | D32: -0.4199964197 | E32: 0.4199964197 | F32: 1.784061928e-05 | H32: -0.3819896042 | I32: 0.3819896042 | J32: 1.622616474e-05 | K32: 0.3541954324 | L32: 5.32905558e-06 | N32: If implied volatility is not equal to est. realized volatility, the lines don't reach | W32: =W31+0.005 -> -0.435 | X32: 0.02325169169 | Y32: 0.006534186409
A33: -3.6 | B33: 6.119019301e-05 | D33: -0.4109484246 | E33: 0.4109484246 | F33: 2.514601342e-05 | H33: -0.3726495732 | I33: 0.3726495732 | J33: 2.280249931e-05 | K33: 0.3448554013 | L33: 7.277058868e-06 | N33: the same height because one distribution is wider than the other. | W33: =W32+0.005 -> -0.43 | X33: 0.02566104282 | Y33: 0.007330530168
A34: -3.5 | B34: 8.72682695e-05 | D34: -0.4017592817 | E34: 0.4017592817 | F34: 3.506083727e-05 | H34: -0.3631683856 | I34: 0.3631683856 | J34: 3.169307655e-05 | K34: 0.3353742138 | L34: 9.815573948e-06 | W34: =W33+0.005 -> -0.425 | X34: 0.02829051984 | Y34: 0.008214794456
A35: -3.4 | B35: 0.0001232219168 | D35: -0.3924267891 | E35: 0.3924267891 | F35: 4.835558118e-05 | H35: -0.3535439083 | I35: 0.3535439083 | J35: 4.356435807e-05 | K35: 0.3257497364 | L35: 1.307543381e-05 | W35: =W34+0.005 -> -0.42 | X35: 0.03115691398 | Y35: 0.009195502524
A36: -3.3 | B36: 0.0001722568939 | D36: -0.3829487107 | E36: 0.3829487107 | F36: 6.596555542e-05 | H36: -0.3437739756 | I36: 0.3437739756 | J36: 5.921743724e-05 | K36: 0.3159798038 | L36: 1.719868578e-05 | W36: =W35+0.005 -> -0.415 | X36: 0.03427794864 | Y36: 0.01028185998
A37: -3.2 | B37: 0.0002384088201 | D37: -0.3733227752 | E37: 0.3733227752 | F37: 8.900344236e-05 | H37: -0.3338563893 | I37: 0.3338563893 | J37: 7.959430787e-05 | K37: 0.3060622174 | L37: 2.233272712e-05 | W37: =W36+0.005 -> -0.41 | X37: 0.0376722963 | Y37: 0.01148379293
A38: -3.1 | B38: 0.0003266819056 | D38: -0.3635466761 | E38: 0.3635466761 | F38: 0.0001187641209 | H38: -0.3237889179 | I38: 0.3237889179 | J38: 0.0001057759807 | K38: 0.295994746 | L38: 2.862154575e-05 | W38: =W37+0.005 -> -0.405 | X38: 0.04135959179 | Y38: 0.01281198646
A39: -3 | B39: 0.0004431848412 | D39: -0.3536180709 | E39: 0.3536180709 | F39: 0.0001567181686 | H39: -0.3135692961 | I39: 0.3135692961 | J39: 0.0001389691587 | K39: 0.2857751242 | L39: 3.619376329e-05 | W39: =W38+0.005 -> -0.4 | X39: 0.04536044173 | Y39: 0.01427792315
A40: -2.9 | B40: 0.000595253242 | D40: -0.3435345805 | E40: 0.3435345805 | F40: 0.0002044900727 | H40: -0.3031952245 | I40: 0.3031952245 | J40: 0.0001804779403 | K40: 0.2754010526 | L40: 4.514742251e-05 | W40: =W39+0.005 -> -0.395 | X40: 0.04969642952 | Y40: 0.01589392134
A41: -2.8 | B41: 0.0007915451583 | D41: -0.3332937887 | E41: 0.3332937887 | F41: 0.0002638170847 | H41: -0.2926643689 | I41: 0.2926643689 | J41: 0.0002316570642 | K41: 0.2648701971 | L41: 5.553181728e-05 | W41: =W40+0.005 -> -0.39 | X41: 0.05439011551 | Y41: 0.01767317303
A42: -2.7 | B42: 0.001042093481 | D42: -0.3228932416 | E42: 0.3228932416 | F42: 0.0003364849422 | H42: -0.2819743598 | I42: 0.2819743598 | J42: 0.0002938436423 | K42: 0.254180188 | L42: 6.732712541e-05 | W42: =W41+0.005 -> -0.385 | X42: 0.05946503182 | Y42: 0.0196297808
A43: -2.6 | B43: 0.001358296923 | D43: -0.312330447 | E43: 0.312330447 | F43: 0.0004242374853 | H43: -0.2711227919 | I43: 0.2711227919 | J43: 0.0003682652541 | K43: 0.2433286201 | L43: 8.042315443e-05 | W43: =W42+0.005 -> -0.38 | X43: 0.06494567144 | Y43: 0.02177879371
A44: -2.5 | B44: 0.001752830049 | D44: -0.301602874 | E44: 0.301602874 | F44: 0.0005286585806 | H44: -0.2601072236 | I44: 0.2601072236 | J44: 0.0004559237575 | K44: 0.2323130517 | L44: 9.459910543e-05 | W44: =W43+0.005 -> -0.375 | X44: 0.07085747098 | Y44: 0.02413624152
A45: -2.4 | B45: 0.002239453029 | D45: -0.290707952 | E45: 0.290707952 | F45: 0.0006510268038 | H45: -0.2489251762 | I45: 0.2489251762 | J45: 0.00055745624 | K45: 0.2211310044 | L45: 0.000109506837 | W45: =W44+0.005 -> -0.37 | X45: 0.07722678674 | Y45: 0.02671916706
A46: -2.3 | B46: 0.002832703774 | D46: -0.2796430703 | E46: 0.2796430703 | F46: 0.0007921459807 | H46: -0.2375741339 | I46: 0.2375741339 | J46: 0.0006729771457 | K46: 0.209779962 | L46: 0.0001246605866 | W46: =W45+0.005 -> -0.365 | X46: 0.08408086357 | Y46: 0.02954565608
A47: -2.2 | B47: 0.003547459285 | D47: -0.2684055776 | E47: 0.2684055776 | F47: 0.0009521578585 | H47: -0.2260515425 | I47: 0.2260515425 | J47: 0.0008019086433 | K47: 0.1982573707 | L47: 0.0001394363815 | W47: =W46+0.005 -> -0.36 | X47: 0.09144779602 | Y47: 0.03263486434
A48: -2.1 | B48: 0.004398359598 | D48: -0.2569927813 | E48: 0.2569927813 | F48: 0.001130346666 | H48: -0.2143548095 | I48: 0.2143548095 | J48: 0.0009428095336 | K48: 0.1865606376 | L48: 0.0001530843406 | W48: =W47+0.005 -> -0.355 | X48: 0.09935648151 | Y48: 0.03600704121
A49: -2 | B49: 0.005399096651 | D49: -0.2454019465 | E49: 0.2454019465 | F49: 0.001324948827 | H49: -0.2024813029 | I49: 0.2024813029 | J49: 0.001093216125 | K49: 0.1746871311 | L49: 0.0001647566401 | W49: =W48+0.005 -> -0.35 | X49: 0.1078365649 | Y49: 0.03968354947
A50: -1.9 | B50: 0.006561581477 | D50: -0.2336302958 | E50: 0.2336302958 | F50: 0.001532984222 | H50: -0.1904283513 | I50: 0.1904283513 | J50: 0.001249511143 | K50: 0.1626341795 | L50: 0.0001735530186 | W50: =W49+0.005 -> -0.345 | X50: 0.1169183741 | Y50: 0.04368688059
A51: -1.8 | B51: 0.00789501583 | D51: -0.2216750087 | E51: 0.2216750087 | F51: 0.001750127703 | H51: -0.1781932427 | I51: 0.1781932427 | J51: 0.001406838472 | K51: =MAX(I51,0)-J$121 -> 0.1503990708 | L51: 0.0001785843147 | W51: =W50+0.005 -> -0.34 | X51: 0.126632847 | Y51: 0.0480406651
A52: -1.7 | B52: 0.009404907738 | D52: -0.2095332203 | E52: 0.2095332203 | F52: 0.001970640605 | H52: -0.1657732241 | I52: 0.1657732241 | J52: 0.001559081878 | K52: 0.1379790522 | L52: 0.0001790526918 | W52: =W51+0.005 -> -0.335 | X52: 0.1370114478 | Y52: 0.05276967722
A53: -1.6 | B53: 0.01109208347 | D53: -0.1972020214 | E53: 0.1972020214 | F53: 0.002187381281 | H53: -0.1531655009 | I53: 0.1531655009 | J53: 0.00169892452 | K53: 0.125371329 | L53: 0.0001743450368 | W53: =W52+0.005 -> -0.33 | X53: 0.1480860745 | Y53: 0.05789983347
A54: -1.5 | B54: 0.01295175957 | D54: -0.184678457 | E54: 0.184678457 | F54: 0.002391910972 | H54: -0.1403672364 | I54: 0.1403672364 | J54: 0.001818002697 | K54: 0.1125730645 | L54: 0.0001641336969 | W54: =W53+0.005 -> -0.325 | X54: 0.1598889562 | Y54: 0.06345818437
A55: -1.4 | B55: 0.01497274656 | D55: -0.1719595263 | E55: 0.1719595263 | F55: 0.002574706406 | H55: -0.1273755509 | I55: 0.1273755509 | J55: 0.001907161842 | K55: 0.09958137904 | L55: 0.0001484765084 | W55: =W54+0.005 -> -0.32 | X55: 0.1724525398 | Y55: 0.06947289876
A56: -1.3 | B56: 0.0171368592 | D56: -0.1590421816 | E56: 0.1590421816 | F56: 0.002725483473 | H56: -0.1141875212 | I56: 0.1141875212 | J56: 0.001956815474 | K56: 0.08639334936 | L56: 0.000127906275 | W56: =W55+0.005 -> -0.315 | X56: 0.1858093668 | Y56: 0.07597324016
A57: -1.2 | B57: 0.0194186055 | D57: -0.1459233277 | E57: 0.1459233277 | F57: 0.002833627533 | H57: -0.10080018 | I57: 0.10080018 | J57: 0.001957398929 | K57: 0.07300600813 | L57: 0.0001034987831 | W57: =W56+0.005 -> -0.31 | X57: 0.1999919398 | Y57: 0.08298953441
A58: -1.1 | B58: 0.0217852177 | D58: -0.132599821 | E58: 0.132599821 | F58: 0.002888715968 | H58: -0.087210515 | I58: 0.087210515 | J58: 0.001899900055 | K58: 0.05941634314 | L58: 7.690839398e-05 | W58: =W57+0.005 -> -0.305 | X58: 0.2150325788 | Y58: 0.09055312822
A59: -1 | B59: 0.02419707245 | D59: -0.1190684691 | E59: 0.1190684691 | F59: 0.002881108372 | H59: -0.07341546853 | I59: 0.07341546853 | J59: 0.001776439411 | K59: 0.04562129668 | L59: 5.036143248e-05 | W59: =W58+0.005 -> -0.3 | X59: 0.2309632674 | Y59: 0.09869633784
A60: -0.9 | B60: 0.02660852499 | D60: -0.1053260294 | E60: 0.1053260294 | F60: 0.002802570286 | H60: -0.05941193664 | I60: 0.05941193664 | J60: 0.001580864001 | K60: 0.03161776478 | L60: 2.660009141e-05 | W60: =W59+0.005 -> -0.295 | X60: 0.2478154891 | Y60: 0.1074523874
A61: -0.8 | B61: 0.02896915528 | D61: -0.09136920916 | E61: 0.09136920916 | F61: 0.002646888808 | H61: -0.04519676846 | I61: 0.04519676846 | J61: 0.001309312203 | K61: 0.0174025966 | L61: 8.773319351e-06 | W61: =W60+0.005 -> -0.29 | X61: 0.2656200541 | Y61: 0.1168553366
A62: -0.7 | B62: 0.03122539334 | D62: -0.07719466397 | E62: 0.07719466397 | F62: 0.002410433746 | H62: -0.03076676552 | I62: 0.03076676552 | J62: 0.0009607043552 | K62: 0.002972593669 | L62: 2.759173528e-07 | W62: =W61+0.005 -> -0.285 | X62: 0.2844069175 | Y62: 0.1269399968
A63: -0.6 | B63: 0.03332246029 | D63: -0.06279899736 | E63: 0.06279899736 | F63: 0.002092617096 | H63: -0.01611868102 | I63: 0.01611868102 | J63: 0.0005371141083 | K63: -0.01167549083 | L63: 4.54242069e-06 | W63: =W62+0.005 -> -0.28 | X63: 0.304204988 | Y63: 0.1377418354
A64: -0.5 | B64: 0.03520653268 | D64: -0.04817875986 | E64: 0.04817875986 | F64: 0.001696207083 | H64: -0.001249219075 | I64: 0.001249219075 | J64: 4.39806722e-05 | K64: -0.02654495278 | L64: 2.480773818e-05 | W64: =W63+0.005 -> -0.275 | X64: 0.3250419294 | Y64: 0.1492968686
A65: -0.4 | B65: 0.03682701403 | D65: -0.03333044819 | E65: 0.03333044819 | F65: 0.001227460883 | H65: 0.01384496601 | I65: 0 | J65: 0 | K65: -0.02779417185 | L65: 2.844945717e-05 | W65: =W64+0.005 -> -0.27 | X65: 0.3469439549 | Y65: 0.1616415412
A66: -0.3 | B66: 0.03813878155 | D66: -0.0182505044 | E66: 0.0182505044 | F66: 0.0006960520005 | H66: 0.02916727049 | I66: 0 | J66: 0 | K66: -0.02779417185 | L66: 2.946281855e-05 | W66: =W65+0.005 -> -0.265 | X66: 0.369935614 | Y66: 0.174812594
A67: -0.2 | B67: 0.0391042694 | D67: -0.002935315076 | E67: 0.002935315076 | F67: 0.0001147833515 | H67: 0.04472114195 | I67: 0 | J67: 0 | K67: -0.02779417185 | L67: 3.020867335e-05 | W67: =W66+0.005 -> -0.26 | X67: 0.3940395757 | Y67: 0.1888469183
A68: -0.1 | B68: 0.03969525475 | D68: 0.0126187896 | E68: 0 | F68: 0 | H68: 0.06051008008 | I68: 0 | J68: 0 | K68: -0.02779417185 | L68: 3.066521898e-05 | W68: =W67+0.005 -> -0.255 | X68: 0.4192764053 | Y68: 0.2037813982
A69: -1.026956298e-15 | B69: 0.03989422804 | D69: 0.02841553668 | E69: 0 | F69: 0 | H69: 0.07653763744 | I69: 0 | J69: 0 | K69: -0.02779417185 | L69: 3.081892903e-05 | W69: =W68+0.005 -> -0.25 | X69: 0.4456643394 | Y69: 0.2196527393
A70: 0.1 | B70: 0.03969525475 | D70: 0.04445871136 | E70: 0 | F70: 0 | H70: 0.09280742032 | I70: 0 | J70: 0 | K70: -0.02779417185 | L70: 3.066521898e-05 | W70: =W69+0.005 -> -0.245 | X70: 0.4732190585 | Y70: 0.2364972856
A71: 0.2 | B71: 0.0391042694 | D71: 0.06075215789 | E71: 0 | F71: 0 | H71: 0.1093230895 | I71: 0 | J71: 0 | K71: -0.02779417185 | L71: 3.020867335e-05 | W71: =W70+0.005 -> -0.24 | X71: 0.5019534582 | Y71: 0.2543508234
A72: 0.3 | B72: 0.03813878155 | D72: 0.07729978048 | E72: 0 | F72: 0 | H72: 0.126088361 | I72: 0 | J72: 0 | K72: -0.02779417185 | L72: 2.946281855e-05 | W72: =W71+0.005 -> -0.235 | X72: 0.5318774221 | Y72: 0.2732483736
A73: 0.4 | B73: 0.03682701403 | D73: 0.09410554424 | E73: 0 | F73: 0 | H73: 0.1431070072 | I73: 0 | J73: 0 | K73: -0.02779417185 | L73: 2.844945717e-05 | W73: =W72+0.005 -> -0.23 | X73: 0.5629975963 | Y73: 0.2932239732
A74: 0.5 | B74: 0.03520653268 | D74: 0.1111734762 | E74: 0 | F74: 0 | H74: 0.1603828572 | I74: 0 | J74: 0 | K74: -0.02779417185 | L74: 2.719760941e-05 | W74: =W73+0.005 -> -0.225 | X74: 0.5953171681 | Y74: 0.3143104448
A75: 0.6 | B75: 0.03332246029 | D75: 0.128507666 | E75: 0 | F75: 0 | H75: 0.1779197983 | I75: 0 | J75: 0 | K75: -0.02779417185 | L75: 2.574213337e-05 | W75: =W74+0.005 -> -0.22 | X75: 0.6288356498 | Y75: 0.3365391572
A76: 0.7 | B76: 0.03122539334 | D76: 0.1461122675 | E76: 0 | F76: 0 | H76: 0.1957217764 | I76: 0 | J76: 0 | K76: -0.02779417185 | L76: 2.412211562e-05 | W76: =W75+0.005 -> -0.215 | X76: 0.6635486701 | Y76: 0.3599397768
A77: 0.8 | B77: 0.02896915528 | D77: 0.1639914988 | E77: 0 | F77: 0 | H77: 0.2137927968 | I77: 0 | J77: 0 | K77: -0.02779417185 | L77: 2.237913564e-05 | W77: =W76+0.005 -> -0.21 | X77: 0.6994477744 | Y77: 0.3845400104
A78: 0.9 | B78: 0.02660852499 | D78: 0.1821496443 | E78: 0 | F78: 0 | H78: 0.2321369258 | I78: 0 | J78: 0 | K78: -0.02779417185 | L78: 2.0555511e-05 | W78: =W77+0.005 -> -0.205 | X78: 0.7365202351 | Y78: 0.4103653423
A79: 1 | B79: 0.02419707245 | D79: 0.200591055 | E79: 0 | F79: 0 | H79: 0.2507582908 | I79: 0 | J79: 0 | K79: -0.02779417185 | L79: 1.869262536e-05 | W79: =W78+0.005 -> -0.2 | X79: 0.7747488755 | Y79: 0.4374387652
A80: 1.1 | B80: 0.0217852177 | D80: 0.2193201497 | E80: 0 | F80: 0 | H80: 0.2696610816 | I80: 0 | J80: 0 | K80: -0.02779417185 | L80: 1.6829429e-05 | W80: =W79+0.005 -> -0.195 | X80: 0.8141119078 | Y80: 0.4657805071
A81: 1.2 | B81: 0.0194186055 | D81: 0.2383414164 | E81: 0 | F81: 0 | H81: 0.2888495516 | I81: 0 | J81: 0 | K81: -0.02779417185 | L81: 1.500118323e-05 | W81: =W80+0.005 -> -0.19 | X81: 0.8545827861 | Y81: 0.4954077571
A82: 1.3 | B82: 0.0171368592 | D82: 0.2576594128 | E82: 0 | F82: 0 | H82: 0.3083280182 | I82: 0 | J82: 0 | K82: -0.02779417185 | L82: 1.323849774e-05 | W82: =W81+0.005 -> -0.185 | X82: 0.8961300794 | Y82: 0.5263343887
A83: 1.4 | B83: 0.01497274656 | D83: 0.2772787679 | E83: 0 | F83: 0 | H83: 0.328100864 | I83: 0 | J83: 0 | K83: =MAX(I83,0)-J$121 -> -0.02779417185 | L83: 1.156668612e-05 | W83: =W82+0.005 -> -0.18 | X83: =_xlfn.NORM.DIST(W83,$J$5,$F$6,FALSE) -> 0.9387173623 | Y83: 0.5585706863
A84: 1.5 | B84: =_xlfn.NORM.DIST(A84,0,1,FALSE)/10 -> 0.01295175957 | D84: =EXP($F$5-0.5*$F$6^2+$F$6*$A84)-1 -> 0.297204183 | E84: =MAX(0,-D84+$F$7) -> 0 | F84: =E84*$B84 -> 0 | H84: =EXP($J$10-0.5*$J$6^2+$J$6*$A84)-1 -> 0.3481725382 | I84: =MAX(0,$J$7-H84) -> 0 | J84: =I84*$B84 -> 0 | K84: -0.02779417185 | L84: =K84^2*$B84 -> 1.000544135e-05 | W84: =W83+0.005 -> -0.175 | X84: 0.9823031281 | Y84: =_xlfn.NORM.DIST(W84,$J$10,$J$6,FALSE) -> 0.5921230739
A85: =A84+0.1 -> 1.6 | B85: 0.01109208347 | D85: 0.3174404324 | E85: 0 | F85: 0 | H85: 0.3685475569 | I85: 0 | J85: 0 | K85: -0.02779417185 | L85: 8.568811831e-06 | W85: =W84+0.005 -> -0.17 | X85: 1.026840725 | Y85: 0.6269938492
A86: 1.7 | B86: 0.009404907738 | D86: 0.3379923652 | E86: 0 | F86: 0 | H86: 0.3892305045 | I86: 0 | J86: 0 | K86: -0.02779417185 | L86: 7.265441603e-06 | W86: =W85+0.005 -> -0.165 | X86: 1.072278315 | Y86: 0.6631809253
A87: 1.8 | B87: 0.00789501583 | D87: 0.3588649059 | E87: 0 | F87: 0 | H87: 0.4102260349 | I87: 0 | J87: 0 | K87: -0.02779417185 | L87: 6.099025963e-06 | W87: =W86+0.005 -> -0.16 | X87: 1.118558861 | Y87: 0.7006775824
A88: 1.9 | B88: 0.006561581477 | D88: 0.3800630562 | E88: 0 | F88: 0 | H88: 0.4315388721 | I88: 0 | J88: 0 | K88: -0.02779417185 | L88: 5.068926605e-06 | W88: =W87+0.005 -> -0.155 | X88: 1.165620141 | Y88: 0.7394722312
A89: 2 | B89: 0.005399096651 | D89: 0.4015918954 | E89: 0 | F89: 0 | H89: 0.4531738116 | I89: 0 | J89: 0 | K89: -0.02779417185 | L89: 4.17088849e-06 | W89: =W88+0.005 -> -0.15 | X89: 1.213394786 | Y89: 0.7795481901
A90: 2.1 | B90: 0.004398359598 | D90: 0.4234565822 | E90: 0 | F90: 0 | H90: 0.4751357213 | I90: 0 | J90: 0 | K90: -0.02779417185 | L90: 3.397803115e-06 | W90: =W89+0.005 -> -0.145 | X90: 1.261810355 | Y90: 0.8208834802
A91: 2.2 | B91: 0.003547459285 | D91: 0.4456623558 | E91: 0 | F91: 0 | H91: 0.4974295428 | I91: 0 | J91: 0 | K91: -0.02779417185 | L91: 2.740469018e-06 | W91: =W90+0.005 -> -0.14 | X91: 1.31078943 | Y91: 0.8634506378
A92: 2.3 | B92: 0.002832703774 | D92: 0.4682145371 | E92: 0 | F92: 0 | H92: 0.5200602922 | I92: 0 | J92: 0 | K92: -0.02779417185 | L92: 2.188308958e-06 | W92: =W91+0.005 -> -0.135 | X92: 1.360249751 | Y92: 0.9072165494
A93: 2.4 | B93: 0.002239453029 | D93: 0.4911185302 | E93: 0 | F93: 0 | H93: 0.5430330616 | I93: 0 | J93: 0 | K93: -0.02779417185 | L93: 1.730013272e-06 | W93: =W92+0.005 -> -0.13 | X93: 1.410104376 | Y93: 0.9521423096
A94: 2.5 | B94: 0.001752830049 | D94: 0.5143798231 | E94: 0 | F94: 0 | H94: 0.56635302 | I94: 0 | J94: 0 | K94: -0.02779417185 | L94: 1.354089239e-06 | W94: =W93+0.005 -> -0.125 | X94: 1.460261876 | Y94: 0.9981831042
A95: 2.6 | B95: 0.001358296923 | D95: 0.5380039898 | E95: 0 | F95: 0 | H95: 0.5900254144 | I95: 0 | J95: 0 | K95: -0.02779417185 | L95: 1.049306091e-06 | W95: =W94+0.005 -> -0.12 | X95: 1.510626554 | Y95: 1.045288123
A96: 2.7 | B96: 0.001042093481 | D96: 0.561996691 | E96: 0 | F96: 0 | H96: 0.6140555712 | I96: 0 | J96: 0 | K96: -0.02779417185 | L96: 8.050338765e-07 | W96: =W95+0.005 -> -0.115 | X96: 1.561098703 | Y96: 1.093400498
A97: 2.8 | B97: 0.0007915451583 | D97: 0.5863636758 | E97: 0 | F97: 0 | H97: 0.6384488974 | I97: 0 | J97: 0 | K97: -0.02779417185 | L97: 6.114812909e-07 | W97: =W96+0.005 -> -0.11 | X97: 1.611574892 | Y97: 1.14245728
A98: 2.9 | B98: 0.000595253242 | D98: 0.611110783 | E98: 0 | F98: 0 | H98: 0.6632108814 | I98: 0 | J98: 0 | K98: -0.02779417185 | L98: 4.59842647e-07 | W98: =W97+0.005 -> -0.105 | X98: 1.661948274 | Y98: 1.192389443
A99: 3 | B99: 0.0004431848412 | D99: 0.6362439425 | E99: 0 | F99: 0 | H99: 0.6883470949 | I99: 0 | J99: 0 | K99: -0.02779417185 | L99: 3.423673759e-07 | W99: =W98+0.005 -> -0.1 | X99: 1.712108938 | Y99: 1.243121924
A100: 3.1 | B100: 0.0003266819056 | D100: 0.6617691767 | E100: 0 | F100: 0 | H100: 0.7138631937 | I100: 0 | J100: 0 | K100: -0.02779417185 | L100: 2.523669954e-07 | W100: =W99+0.005 -> -0.095 | X100: 1.761944267 | Y100: 1.2945737
A101: 3.2 | B101: 0.0002384088201 | D101: 0.6876926018 | E101: 0 | F101: 0 | H101: 0.7397649189 | I101: 0 | J101: 0 | K101: -0.02779417185 | L101: 1.841746255e-07 | W101: =W100+0.005 -> -0.09 | X101: 1.811339344 | Y101: 1.346657904
A102: 3.3 | B102: 0.0001722568939 | D102: 0.7140204297 | E102: 0 | F102: 0 | H102: 0.7660580985 | I102: 0 | J102: 0 | K102: -0.02779417185 | L102: 1.330712048e-07 | W102: =W101+0.005 -> -0.085 | X102: 1.860177363 | Y102: 1.399281974
A103: 3.4 | B103: 0.0001232219168 | D103: 0.7407589689 | E103: 0 | F103: 0 | H103: 0.7927486487 | I103: 0 | J103: 0 | K103: -0.02779417185 | L103: 9.519090097e-08 | W103: =W102+0.005 -> -0.08 | X103: 1.908340074 | Y103: 1.452347847
A104: 3.5 | B104: 8.72682695e-05 | D104: 0.7679146265 | E104: 0 | F104: 0 | H104: 0.8198425748 | I104: 0 | J104: 0 | K104: -0.02779417185 | L104: 6.741613353e-08 | W104: =W103+0.005 -> -0.075 | X104: 1.955708246 | Y104: 1.505752183
A105: 3.6 | B105: 6.119019301e-05 | D105: 0.7954939096 | E105: 0 | F105: 0 | H105: 0.8473459733 | I105: 0 | J105: 0 | K105: -0.02779417185 | L105: 4.727040248e-08 | W105: =W104+0.005 -> -0.07 | X105: 2.002162138 | Y105: 1.559386637
A106: 3.7 | B106: 4.247802706e-05 | D106: 0.8235034265 | E106: 0 | F106: 0 | H106: 0.8752650323 | I106: 0 | J106: 0 | K106: -0.02779417185 | L106: 3.281495508e-08 | W106: =W105+0.005 -> -0.065 | X106: 2.047581999 | Y106: 1.613138163
A107: 3.8 | B107: 2.919469258e-05 | D107: 0.851949889 | E107: 0 | F107: 0 | H107: 0.9036060339 | I107: 0 | J107: 0 | K107: -0.02779417185 | L107: 2.255336681e-08 | W107: =W106+0.005 -> -0.06 | X107: 2.091848569 | Y107: 1.666889358
A108: 3.9 | B108: 1.986554714e-05 | D108: 0.8808401134 | E108: 0 | F108: 0 | H108: 0.9323753549 | I108: 0 | J108: 0 | K108: -0.02779417185 | L108: 1.53464528e-08 | W108: =W107+0.005 -> -0.055 | X108: 2.134843595 | Y108: 1.720518839
A109: 4 | B109: 1.338302258e-05 | D109: 0.9101810222 | E109: 0 | F109: 0 | H109: 0.9615794685 | I109: 0 | J109: 0 | K109: -0.02779417185 | L109: 1.033859892e-08 | W109: =W108+0.005 -> -0.05 | X109: 2.17645035 | Y109: 1.773901666
A110: 4.1 | B110: 8.926165718e-06 | D110: 0.9399796461 | E110: 0 | F110: 0 | H110: 0.9912249458 | I110: 0 | J110: 0 | K110: -0.02779417185 | L110: 6.895605738e-09 | W110: =W109+0.005 -> -0.045 | X110: 2.216554157 | Y110: 1.826909783
A111: 4.2 | B111: 5.894306776e-06 | D111: 0.9702431255 | E111: 0 | F111: 0 | H111: 1.021318457 | I111: 0 | J111: 0 | K111: -0.02779417185 | L111: 4.553446229e-09 | W111: =W110+0.005 -> -0.04 | X111: 2.255042911 | Y111: 1.879412503
A112: 4.3 | B112: 3.853519674e-06 | D112: 1.000978712 | E112: 0 | F112: 0 | H112: 1.051866773 | I112: 0 | J112: 0 | K112: -0.02779417185 | L112: 2.976905563e-09 | W112: =W111+0.005 -> -0.035 | X112: 2.291807598 | Y112: 1.931277018
A113: 4.4 | B113: 2.494247129e-06 | D113: 1.03219377 | E113: 0 | F113: 0 | H113: 1.082876769 | I113: 0 | J113: 0 | K113: -0.02779417185 | L113: 1.926845788e-09 | W113: =W112+0.005 -> -0.03 | X113: 2.326742809 | Y113: 1.982368938
A114: 4.5 | B114: 1.598374111e-06 | D114: 1.06389578 | E114: 0 | F114: 0 | H114: 1.11435542 | I114: 0 | J114: 0 | K114: -0.02779417185 | L114: 1.234769557e-09 | W114: =W113+0.005 -> -0.025 | X114: 2.35974724 | Y114: 2.032552846
A115: 4.6 | B115: 1.014085207e-06 | D115: 1.096092338 | E115: 0 | F115: =E115*$B115 -> 0 | H115: 1.14630981 | I115: =MAX(0,$J$7-H115) -> 0 | J115: =I115*$B115 -> 0 | K115: =MAX(I115,0)-J$121 -> -0.02779417185 | L115: =K115^2*$B115 -> 7.833970364e-10 | W115: =W114+0.005 -> -0.02 | X115: =_xlfn.NORM.DIST(W115,$J$5,$F$6,FALSE) -> 2.390724182 | Y115: =_xlfn.NORM.DIST(W115,$J$10,$J$6,FALSE) -> 2.081692889
A116: 4.7 | B116: 6.369825179e-07 | D116: 1.128791159 | E116: 0 | F116: 0 | H116: 1.178747129 | I116: 0 | J116: 0 | K116: -0.02779417185 | L116: 4.920791798e-10 | W116: =W115+0.005 -> -0.015 | X116: 2.419581988 | Y116: 2.12965337
A117: 4.8 | B117: 3.961299091e-07 | D117: 1.162000078 | E117: 0 | F117: 0 | H117: 1.211674675 | I117: 0 | J117: 0 | K117: -0.02779417185 | L117: 3.060166885e-10 | W117: =W116+0.005 -> -0.01 | X117: 2.446234531 | Y117: 2.176299367
A118: 4.9 | B118: 2.438960746e-07 | D118: 1.195727053 | E118: 0 | F118: 0 | H118: 1.245099857 | I118: 0 | J118: 0 | K118: -0.02779417185 | L118: 1.884136173e-10 | W118: =W117+0.005 -> -0.005 | X118: 2.470601626 | Y118: 2.221497353
A119: 5 | B119: =_xlfn.NORM.DIST(A119,0,1,FALSE)/10 -> 1.486719515e-07 | D119: 1.229980165 | E119: 0 | F119: =E119*$B119 -> 0 | H119: 1.279030196 | I119: =MAX(0,$J$7-H119) -> 0 | J119: =I119*$B119 -> 0 | K119: -0.02779417185 | L119: =K119^2*$B119 -> 1.148514596e-10 | W119: =W118+0.005 -> 3.764349943e-16 | X119: 2.492609434 | Y119: 2.265115829
W120: =W119+0.005 -> 0.005 | X120: 2.512190835 | Y120: 2.307025955
B121: =SUM(B19:B119) -> 0.999999563 | F121: =SUM(F19:F119) -> 0.04462786991 | J121: =SUM(J19:J119) -> 0.02779417185 | L121: =SUM(L19:L119) -> 0.003149278322 | W121: =W120+0.005 -> 0.01 | X121: 2.529285768 | Y121: 2.347102178
W122: =W121+0.005 -> 0.015 | X122: 2.54384154 | Y122: 2.385222861
W123: =W122+0.005 -> 0.02 | X123: 2.555813091 | Y123: 2.421270888
W124: =W123+0.005 -> 0.025 | X124: 2.565163235 | Y124: 2.455134269
W125: =W124+0.005 -> 0.03 | X125: 2.571862845 | Y125: 2.486706712
W126: =W125+0.005 -> 0.035 | X126: 2.575891007 | Y126: 2.515888185
W127: =W126+0.005 -> 0.04 | X127: 2.577235129 | Y127: 2.542585436
W128: =W127+0.005 -> 0.045 | X128: 2.575891007 | Y128: 2.566712497
W129: =W128+0.005 -> 0.05 | X129: 2.571862845 | Y129: 2.588191138
W130: =W129+0.005 -> 0.055 | X130: 2.565163235 | Y130: 2.606951293
W131: =W130+0.005 -> 0.06 | X131: 2.555813091 | Y131: 2.622931441
W132: =W131+0.005 -> 0.065 | X132: 2.54384154 | Y132: 2.636078939
W133: =W132+0.005 -> 0.07 | X133: 2.529285768 | Y133: 2.646350317
W134: =W133+0.005 -> 0.075 | X134: 2.512190835 | Y134: 2.653711509
W135: =W134+0.005 -> 0.08 | X135: 2.492609434 | Y135: 2.658138049
W136: =W135+0.005 -> 0.085 | X136: 2.470601626 | Y136: 2.659615203
W137: =W136+0.005 -> 0.09 | X137: 2.446234531 | Y137: 2.658138049
W138: =W137+0.005 -> 0.095 | X138: 2.419581988 | Y138: 2.653711509
W139: =W138+0.005 -> 0.1 | X139: 2.390724182 | Y139: 2.646350317
W140: =W139+0.005 -> 0.105 | X140: 2.35974724 | Y140: 2.636078939
W141: =W140+0.005 -> 0.11 | X141: 2.326742809 | Y141: 2.622931441
W142: =W141+0.005 -> 0.115 | X142: 2.291807598 | Y142: 2.606951293
W143: =W142+0.005 -> 0.12 | X143: 2.255042911 | Y143: 2.588191138
W144: =W143+0.005 -> 0.125 | X144: 2.216554157 | Y144: 2.566712497
W145: =W144+0.005 -> 0.13 | X145: 2.17645035 | Y145: 2.542585436
W146: =W145+0.005 -> 0.135 | X146: 2.134843595 | Y146: 2.515888185
W147: =W146+0.005 -> 0.14 | X147: 2.091848569 | Y147: 2.486706712
W148: =W147+0.005 -> 0.145 | X148: 2.047581999 | Y148: 2.455134269
W149: =W148+0.005 -> 0.15 | X149: 2.002162138 | Y149: 2.421270888
W150: =W149+0.005 -> 0.155 | X150: 1.955708246 | Y150: 2.385222861
W151: =W150+0.005 -> 0.16 | X151: 1.908340074 | Y151: 2.347102178
W152: =W151+0.005 -> 0.165 | X152: 1.860177363 | Y152: 2.307025955
W153: =W152+0.005 -> 0.17 | X153: 1.811339344 | Y153: 2.265115829
W154: =W153+0.005 -> 0.175 | X154: 1.761944267 | Y154: 2.221497353
W155: =W154+0.005 -> 0.18 | X155: 1.712108938 | Y155: 2.176299367
W156: =W155+0.005 -> 0.185 | X156: 1.661948274 | Y156: 2.12965337
W157: =W156+0.005 -> 0.19 | X157: 1.611574892 | Y157: 2.081692889
W158: =W157+0.005 -> 0.195 | X158: 1.561098703 | Y158: 2.032552846
W159: =W158+0.005 -> 0.2 | X159: 1.510626554 | Y159: 1.982368938
W160: =W159+0.005 -> 0.205 | X160: 1.460261876 | Y160: 1.931277018
W161: =W160+0.005 -> 0.21 | X161: 1.410104376 | Y161: 1.879412503
W162: =W161+0.005 -> 0.215 | X162: 1.360249751 | Y162: 1.826909783
W163: =W162+0.005 -> 0.22 | X163: 1.31078943 | Y163: 1.773901666
W164: =W163+0.005 -> 0.225 | X164: 1.261810355 | Y164: 1.720518839
W165: =W164+0.005 -> 0.23 | X165: 1.213394786 | Y165: 1.666889358
W166: =W165+0.005 -> 0.235 | X166: 1.165620141 | Y166: 1.613138163
W167: =W166+0.005 -> 0.24 | X167: 1.118558861 | Y167: 1.559386637
W168: =W167+0.005 -> 0.245 | X168: 1.072278315 | Y168: 1.505752183
W169: =W168+0.005 -> 0.25 | X169: 1.026840725 | Y169: 1.452347847
W170: =W169+0.005 -> 0.255 | X170: 0.9823031281 | Y170: 1.399281974
W171: =W170+0.005 -> 0.26 | X171: 0.9387173623 | Y171: 1.346657904
W172: =W171+0.005 -> 0.265 | X172: 0.8961300794 | Y172: 1.2945737
W173: =W172+0.005 -> 0.27 | X173: 0.8545827861 | Y173: 1.243121924
W174: =W173+0.005 -> 0.275 | X174: 0.8141119078 | Y174: 1.192389443
W175: =W174+0.005 -> 0.28 | X175: 0.7747488755 | Y175: 1.14245728
W176: =W175+0.005 -> 0.285 | X176: 0.7365202351 | Y176: 1.093400498
W177: =W176+0.005 -> 0.29 | X177: 0.6994477744 | Y177: 1.045288123
W178: =W177+0.005 -> 0.295 | X178: 0.6635486701 | Y178: 0.9981831042
W179: =W178+0.005 -> 0.3 | X179: =_xlfn.NORM.DIST(W179,$J$5,$F$6,FALSE) -> 0.6288356498 | Y179: =_xlfn.NORM.DIST(W179,$J$10,$J$6,FALSE) -> 0.9521423096
W180: =W179+0.005 -> 0.305 | X180: 0.5953171681 | Y180: 0.9072165494
W181: =W180+0.005 -> 0.31 | X181: 0.5629975963 | Y181: 0.8634506378
W182: =W181+0.005 -> 0.315 | X182: 0.5318774221 | Y182: 0.8208834802
W183: =W182+0.005 -> 0.32 | X183: 0.5019534582 | Y183: 0.7795481901
W184: =W183+0.005 -> 0.325 | X184: 0.4732190585 | Y184: 0.7394722312
W185: =W184+0.005 -> 0.33 | X185: 0.4456643394 | Y185: 0.7006775824
W186: =W185+0.005 -> 0.335 | X186: 0.4192764053 | Y186: 0.6631809253
W187: =W186+0.005 -> 0.34 | X187: 0.3940395757 | Y187: 0.6269938492
W188: =W187+0.005 -> 0.345 | X188: 0.369935614 | Y188: 0.5921230739
W189: =W188+0.005 -> 0.35 | X189: 0.3469439549 | Y189: 0.5585706863
W190: =W189+0.005 -> 0.355 | X190: 0.3250419294 | Y190: 0.5263343887
W191: =W190+0.005 -> 0.36 | X191: 0.304204988 | Y191: 0.4954077571
W192: =W191+0.005 -> 0.365 | X192: 0.2844069175 | Y192: 0.4657805071
W193: =W192+0.005 -> 0.37 | X193: 0.2656200541 | Y193: 0.4374387652
W194: =W193+0.005 -> 0.375 | X194: 0.2478154891 | Y194: 0.4103653423
W195: =W194+0.005 -> 0.38 | X195: 0.2309632674 | Y195: 0.3845400104
W196: =W195+0.005 -> 0.385 | X196: 0.2150325788 | Y196: 0.3599397768
W197: =W196+0.005 -> 0.39 | X197: 0.1999919398 | Y197: 0.3365391572
W198: =W197+0.005 -> 0.395 | X198: 0.1858093668 | Y198: 0.3143104448
W199: =W198+0.005 -> 0.4 | X199: 0.1724525398 | Y199: 0.2932239732
W200: =W199+0.005 -> 0.405 | X200: 0.1598889562 | Y200: 0.2732483736
W201: =W200+0.005 -> 0.41 | X201: 0.1480860745 | Y201: 0.2543508234
... 28 more rows
